[Event "Polish Youth B18 Championship 2023"]
[Site "Jastrzebia Gora"]
[Date "2023.03.14"]
[Round "4.21"]
[White "Bem, Tymoteusz"]
[Black "Wesolek, Krzysztof"]
[Result "1/2-1/2"]
[ECO "A38"]
[WhiteElo "1748"]
[BlackElo "1765"]
[Annotator "NA RC COMBH"]
[PlyCount "90"]
[EventDate "2023.03.11"]
[EventType "swiss"]
[EventCountry "POL"]
[SourceTitle "playchess.com"]
[Source "ChessBase"]
[SourceQuality "1"]
[TimeControl "40/5400+30:1800+30"]

1. Nf3 {[%emt 0:00:49]} Nf6 {[%emt 0:00:23]} 2. c4 {[%emt 0:01:04]} c5 {[%emt 0:00:39]} 3. Nc3 {[%emt 0:00:27]} Nc6 {[%emt 0:01:01]} 4. g3 {[%emt 0:01:35]} g6 {[%emt 0:05:13]} 5. Bg2 {[%emt 0:00:17]} Bg7 {[%emt 0:00:02]} 6. O-O {[%emt 0:00:08]} e5 {[%emt 0:03:51]} 7. d3 {[%emt 0:01:43]} d6 {[%emt 0:00:49]} 8. a3 {[%emt 0:01:55]} O-O {[%emt 0:08:13]} 9. Rb1 {[%emt 0:00:26]} a5 {[%emt 0:00:45]} 10. Ne1 {[%emt 0:02:53]} Be6 {[%emt 0:01:07]} 11. Nc2 {[%emt 0:01:08]} d5 {[%emt 0:50:34]} 12. cxd5 {[%emt 0:01:23]} Bxd5 {[%emt 0:00:23]} 13. Nxd5 {[%emt 0:03:31]} Nxd5 {[%emt 0:01:09]} 14. Ne3 {[%emt 0:01:31]} Nxe3 {[%emt 0:09:24]} 15. Bxe3 {[%emt 0:00:30]} Qd6 {[%emt 0:00:02]} 16. Re1 {[%emt 0:04:40]} Rac8 {[%emt 0:03:39]} 17. Qa4 {[%emt 0:05:10]} b6 {[%emt 0:00:36]} 18. Rbc1 {[%emt 0:13:42]} Rfd8 {[%emt 0:01:46]} 19. Qc4 {[%emt 0:02:39]} Nd4 {[%emt 0:01:23]} 20. Bh3 {[%emt 0:03:35]} Rc7 {[%emt 0:00:18]} 21. b4 {[%emt 0:03:34]} axb4 {[%emt 0:00:20]} 22. axb4 {[%emt 0:00:20]} Bf8 {[%emt 0:02:38]} 23. Bg2 {[%emt 0:02:43]} b5 {[%emt 0:01:32]} 24. bxc5 {[%emt 0:00:10]} Rxc5 {[%emt 0:00:39]} 25. Qa2 {[%emt 0:01:55]} b4 {[%emt 0:01:31]} 26. Rxc5 {[%emt 0:03:10]} Qxc5 {[%emt 0:00:02]} 27. Rc1 {[%emt 0:00:16]} b3 {[%emt 0:01:46]} 28. Qb2 {[%emt 0:01:42]} Qa3 {[%emt 0:00:08]} 29. Bxd4 {[%emt 0:01:33]} Rxd4 {[%emt 0:00:14]} 30. Rb1 {[%emt 0:00:46]} Qa2 {[%emt 0:03:59]} 31. Qxb3 {[%emt 0:01:36]} Qxe2 {[%emt 0:00:32]} 32. Bd5 {[%emt 0:01:00]} Qxd3 {[%emt 0:00:22]} 33. Bxf7+ {[%emt 0:00:35]} Kg7 {[%emt 0:00:03]} 34. Qa2 {[%emt 0:05:43]} Rd7 {[%emt 0:01:00]} 35. Be6 {[%emt 0:01:03]} Rc7 {[%emt 0:00:26]} 36. Re1 {[%emt 0:01:45]} Bd6 37. Qa8 {[%emt 0:00:36]} Kh6 {[%emt 0:01:56]} 38. Qd8 {[%emt 0:01:34]} Qd2 {[%emt 0:00:32]} 39. Re4 {[%emt 0:02:07]} Qc1+ {[%emt 0:00:30]} 40. Kg2 {[%emt 0:00:00]} Qc6 {[%emt 0:00:00]} 41. f3 {[%emt 0:02:55]} Be7 {[%emt 0:04:49]} 42. Qg8 {[%emt 0:05:31]} Qd6 {[%emt 0:09:13]} 43. Kh3 {[%emt 0:06:40]} Qd8 {[%emt 0:10:10]} 44. Qf7 {[%emt 0:01:55]} Bf6 {[%emt 0:00:46]} 45. Qg8 {[%emt 0:00:51]} Qxg8 {[%emt 0:00:16]} 1/2-1/2

[Event "Polish Youth B18 Championship 2023"]
[Site "Jastrzebia Gora"]
[Date "2023.03.14"]
[Round "4.22"]
[White "Zeissel, Andrzej"]
[Black "Sternik, Piotr"]
[Result "1-0"]
[ECO "B12"]
[WhiteElo "1717"]
[BlackElo "1746"]
[Annotator "NA RC COMBH"]
[PlyCount "85"]
[EventDate "2023.03.11"]
[EventType "swiss"]
[EventCountry "POL"]
[SourceTitle "playchess.com"]
[Source "ChessBase"]
[SourceQuality "1"]
[TimeControl "40/5400+30:1800+30"]

1. e4 {[%emt 0:00:02]} c6 {[%emt 0:00:04]} 2. d4 {[%emt 0:00:04]} d5 {[%emt 0:00:07]} 3. f3 {[%emt 0:00:02]} e6 {[%emt 0:00:06]} 4. Nc3 {[%emt 0:00:03]} Bb4 {[%emt 0:00:05]} 5. Bd2 {[%emt 0:00:05]} Ne7 {[%emt 0:00:05]} 6. a3 {[%emt 0:00:03]} Ba5 {[%emt 0:00:06]} 7. Bd3 {[%emt 0:00:11]} Nd7 {[%emt 0:01:20]} 8. f4 {[%emt 0:00:19]} Bb6 {[%emt 0:10:49]} 9. Nf3 {[%emt 0:02:18]} O-O {[%emt 0:05:40]} 10. e5 {[%emt 0:01:15]} f6 {[%emt 0:00:08]} 11. b4 {[%emt 0:08:35]} Qe8 {[%emt 0:06:37]} 12. Ne2 {[%emt 0:06:01]} fxe5 {[%emt 0:06:18]} 13. fxe5 {[%emt 0:01:35]} Nf5 {[%emt 0:00:26]} 14. c3 {[%emt 0:02:56]} Bd8 {[%emt 0:02:41]} 15. O-O {[%emt 0:18:01]} b6 {[%emt 0:04:47]} 16. Qe1 {[%emt 0:04:20]} a5 {[%emt 0:00:11]} 17. g4 {[%emt 0:03:27]} Ne7 {[%emt 0:09:56]} 18. Nf4 {[%emt 0:10:36]} Ng6 {[%emt 0:00:53]} 19. Nxg6 {[%emt 0:05:28]} hxg6 {[%emt 0:00:04]} 20. Qe2 {[%emt 0:05:03]} Nb8 {[%emt 0:06:00]} 21. a4 {[%emt 0:03:39]} axb4 {[%emt 0:00:28]} 22. cxb4 {[%emt 0:00:06]} Be7 {[%emt 0:09:42]} 23. g5 {[%emt 0:03:09]} c5 {[%emt 0:01:01]} 24. Nh4 {[%emt 0:01:05]} Rf5 {[%emt 0:17:25]} 25. Nxf5 {[%emt 0:03:17]} gxf5 {[%emt 0:00:56]} 26. bxc5 {[%emt 0:03:09]} bxc5 {[%emt 0:00:07]} 27. Bb5 {[%emt 0:00:33]} Qg6 {[%emt 0:00:43]} 28. h4 {[%emt 0:03:07]} cxd4 {[%emt 0:01:40]} 29. h5 {[%emt 0:00:59]} Qf7 {[%emt 0:00:02]} 30. Rac1 {[%emt 0:01:58]} Qf8 {[%emt 0:01:21]} 31. Rc2 {[%emt 0:03:10]} Bd7 {[%emt 0:12:59]} 32. Rfc1 {[%emt 0:01:29]} Ba3 {[%emt 0:00:35]} 33. Rb1 {[%emt 0:02:52]} f4 {[%emt 0:00:14]} 34. Qg4 {[%emt 0:02:33]} d3 {[%emt 0:02:11]} 35. Rc7 {[%emt 0:01:22]} Bc5+ {[%emt 0:00:19]} 36. Kh2 {[%emt 0:00:42]} Ra7 {[%emt 0:01:43]} 37. Rxa7 {[%emt 0:00:53]} Bxa7 38. Bxd7 {[%emt 0:00:15]} Nxd7 {[%emt 0:00:55]} 39. Qxe6+ {[%emt 0:00:52]} Kh7 {[%emt 0:00:30]} 40. Qxd7 {[%emt 0:00:00]} Qc5 {[%emt 0:00:00]} 41. g6+ {[%emt 0:02:33]} Kh6 {[%emt 0:00:19]} 42. Bxf4+ {[%emt 0:00:06]} Kxh5 {[%emt 0:00:14]} 43. Qf5+ {[%emt 0:00:02]} 1-0

[Event "Polish Youth B18 Championship 2023"]
[Site "Jastrzebia Gora"]
[Date "2023.03.15"]
[Round "5.1"]
[White "Dzida, Kamil"]
[Black "Kacprzak, Kacper"]
[Result "1-0"]
[ECO "B47"]
[WhiteElo "2333"]
[BlackElo "2248"]
[Annotator "TA"]
[PlyCount "69"]
[EventDate "2023.03.11"]
[EventType "swiss"]
[EventCountry "POL"]
[SourceTitle "playchess.com"]
[Source "ChessBase"]
[SourceQuality "1"]
[TimeControl "40/5400+30:1800+30"]

{[%evp 27,69,8,9,0,20,26,20,21,37,27,24,31,37,34,71,54,54,39,90,79,305,252,304,304,538,577,600,583,997,972,1397,781,1211,1206,1531,1416,1337,1265,1265,1227,1200,-86,1157,1118]} 1. e4 {[%emt 0:00:01]} c5 {[%emt 0:00:04]} 2. Nf3 {[%emt 0:00:07]} e6 {[%emt 0:00:04]} 3. d4 {[%emt 0:00:05]} cxd4 {[%emt 0:00:03]} 4. Nxd4 {[%emt 0:00:06]} Nc6 {[%emt 0:00:03]} 5. Nc3 {[%emt 0:00:09]} Qc7 {[%emt 0:00:04]} 6. Be2 {[%emt 0:00:07]} a6 {[%emt 0:00:04]} 7. O-O {[%emt 0:00:34]} Nf6 {[%emt 0:00:04]} 8. Be3 {[%emt 0:00:07]} Be7 {[%emt 0:00:07]} 9. f4 {[%emt 0:00:11]} d6 {[%emt 0:00:04]} 10. Kh1 {[%emt 0:00:25]} O-O {[%emt 0:00:06]} 11. Qe1 {[%emt 0:00:06]} Nxd4 {[%emt 0:00:05]} 12. Bxd4 {[%emt 0:00:07]} b5 {[%emt 0:00:03]} 13. a3 {[%emt 0:00:07][%cal Ba2a3,Ba3a4][%mdl 32]} Bb7 {[%emt 0:00:10]} 14. Qg3 {[%emt 0:00:18]} Rad8 {[%emt 0:00:06] is now more promising than 14...Bc6.} 15. Rae1 {[%emt 0:00:08] B85: Sicilian Scheveningen: 6 Be2 a6, lines with early Be3.} Rd7 {[%emt 0:00:05]} 16. Bd3 {[%emt 0:00:37]} Re8 {[%emt 0:00:05]} 17. a4 {[%emt 0:05:48] The position is equal. is the legacy move (17.Nd1).} b4 {[%emt 0:00:19]} 18. Nd1 {[%emt 0:00:06]} (18. Na2 $5 {[%cal Ra2b4]}) 18... Bd8 {[%emt 0:05:29]} 19. b3 {[%emt 0:00:15]} e5 {[%emt 0:04:52]} 20. Bb2 {[%emt 0:00:08] [#]} Nh5 $146 {[%emt 0:15:12]} ({Predecessor:} 20... h6 21. Qh3 exf4 22. Rxf4 Re6 23. a5 Qc8 24. Ne3 Nxe4 25. Qg4 Nf6 26. Qd1 g6 {½-½ Galliano,G (2419)-Elyoseph,H (2429) ICCF GMN/066 email 2018}) 21. Qg4 {[%emt 0:00:08]} Nf6 {[%emt 0:09:40]} 22. Qh3 {[%emt 0:10:08]} Qc8 {[%emt 0:01:01] [#]} (22... Re6 $14) 23. Ne3 $1 $16 {[%emt 0:04:58][%cal Oe3d5]} exf4 $2 {[%emt 0:25:43]} (23... Rc7 $16) 24. Rxf4 {[%emt 0:10:16] Hoping for Bxf6.} Nxe4 {[%emt 0:09:47] [#]} 25. Qg4 $1 {[%emt 0:06:51][%csl Gb2,LRe4,LRg7][%cal Rg4g7]} (25. Bxg7 Bg5 26. Bd4 Rde7 $16) 25... Nc3 $2 {[%emt 0:06:57]} (25... Ng5 $2 26. Bxh7+ (26. Rxb4 Ne6 $18) 26... Kxh7 27. Qh5+ Kg8 28. Rh4 (28. Rxb4 $2 {too greedy.} Be4 $19) 28... Bxg2+ 29. Nxg2 (29. Kxg2 $2 Qb7+ 30. Kf2 Ne4+ {[%mdl 64] Discovered Attack} 31. Kg1 Bxh4 $19) 29... Rxe1+ 30. Nxe1 $18) (25... Bf6) 26. Bf5 $18 {[%emt 0:03:39]} ({Weaker is} 26. Rxb4 Rde7 $18) 26... Qc5 {[%emt 0:00:15]} 27. Qh3 {[%emt 0:00:15]} ({Not} 27. Bxd7 Rxe3 28. Rff1 Re5 $16) 27... g6 {[%emt 0:07:25] aiming for ...Rde7.} 28. Bxd7 {[%emt 0:00:05]} Re5 {[%emt 0:00:19]} 29. Rff1 {[%emt 0:04:06][%cal Of1f7] Rxf7! would be deadly.} Rh5 {[%emt 0:01:56] [#]} 30. Nf5 $1 {[%emt 0:01:39][%cal Re1e8]} Be4 {[%emt 0:01:15] [#]} (30... Qxf5 31. Bxf5) 31. Rxe4 $1 {[%emt 0:02:35]} Nxe4 {[%emt 0:00:49] [#]} 32. Qxh5 $3 {[%emt 0:00:19][%mdl 576] White wants to mate with Nh6+. Remove Defender} Nf2+ {[%emt 0:01:01] [#]} 33. Rxf2 $1 {[%emt 0:00:04]} Qxf2 {[%emt 0:00:08]} 34. Nh6+ {[%emt 0:00:06]} Kf8 {[%emt 0:00:06][%cal Rf2e1][%mdl 1024] Black has strong compensation.} 35. Qd1 {[%emt 0:00:04] Repels Qe1+. A superb game by Dzida.   Weighted Error Value: White=0.05 (flawless) /Black=0.64} 1-0

[Event "Polish Youth B18 Championship 2023"]
[Site "Jastrzebia Gora"]
[Date "2023.03.15"]
[Round "5.2"]
[White "Chyzy, Jakub"]
[Black "Luberanski, Jakub"]
[Result "1-0"]
[ECO "C02"]
[WhiteElo "2250"]
[BlackElo "2242"]
[Annotator "TA"]
[PlyCount "65"]
[EventDate "2023.03.11"]
[EventType "swiss"]
[EventCountry "POL"]
[SourceTitle "playchess.com"]
[Source "ChessBase"]
[SourceQuality "1"]
[TimeControl "40/5400+30:1800+30"]

{[%evp 10,65,0,0,0,8,9,10,34,21,37,-13,-22,-15,-22,0,6,-57,-44,-31,-35,-52,8,11,9,8,9,15,17,6,20,12,433,206,215,225,211,221,217,216,322,289,282,266,418,407,992,522,923,909,845,783,1055,1036,965,927,895,870]} 1. e4 {[%emt 0:03:24]} e6 {[%emt 0:00:02]} 2. d4 {[%emt 0:00:14]} d5 {[%emt 0:00:04]} 3. e5 {[%emt 0:00:04]} c5 {[%emt 0:00:04]} 4. c3 {[%emt 0:00:03]} Nc6 {[%emt 0:00:04]} 5. Nf3 {[%emt 0:00:03]} Qb6 {[%emt 0:00:04]} 6. Na3 {[%emt 0:00:07]} Bd7 {[%emt 0:01:38] C02: French: Advance Variation.} 7. Nc2 {[%emt 0:03:19]} f6 {[%emt 0:10:22]} 8. Bd3 {[%emt 0:14:24][%cal Bf1d3,Bd3e2,Be2h5][%mdl 32]} c4 {[%emt 0:03:26] The position is equal.} 9. Be2 {[%emt 0:01:12]} fxe5 {[%emt 0:00:13]} 10. Nxe5 {[%emt 0:05:07]} (10. dxe5 $14 Bc5 11. O-O) 10... Nxe5 $11 {[%emt 0:00:52]} 11. dxe5 {[%emt 0:00:02]} Bc5 {[%emt 0:00:11]} 12. O-O {[%emt 0:01:05]} Ne7 {[%emt 0:00:07] [#]} 13. Ne3 $146 {[%emt 0:15:29]} (13. Bh5+ $11 g6 14. Be2) ({Predecessor:} 13. Kh1 Bxf2 14. Bg5 Ng6 15. Nd4 O-O 16. Qd2 Nxe5 17. Bf4 Bxd4 18. cxd4 Nc6 19. Be3 {0-1 Barrios Munoz,R (2132)-Gavilan Diaz,M (2300) Andalucia-ch 0708 2008 (4)}) 13... Qc7 $15 {[%emt 0:09:14]} 14. Bh5+ {[%emt 0:15:53]} g6 {[%emt 0:00:43]} 15. Bf3 {[%emt 0:00:12]} Qxe5 {[%emt 0:11:20]} ({Black should play} 15... O-O-O $15) 16. Re1 $11 {[%emt 0:10:15][%cal Oe3d5] aiming for Nxd5!} Qc7 $1 {[%emt 0:19:20] [#]} 17. Bxd5 $1 {[%emt 0:18:20]} Bxe3 {[%emt 0:10:35]} (17... exd5 18. Nxd5 Qc6 19. Bg5 $16) 18. Rxe3 {[%emt 0:00:11]} exd5 {[%emt 0:07:20]} 19. Qd4 $1 {[%emt 0:00:22]} Rf8 {[%emt 0:03:43] ...Qb6 is the strong threat.} (19... Kf7 $2 20. Rxe7+ Kxe7 21. Bf4 $18) 20. Re2 {[%emt 0:03:24] Hoping for Bg5.} Kf7 $2 {[%emt 0:10:09][%mdl 8192] This move loses the game for Black.} (20... Qb6 $1 $11 21. Bg5 (21. Qxd5 $2 Rxf2 22. Rxe7+ Kxe7 $19) 21... Qxd4 22. Rxe7+ Kd8 23. cxd4 Rf5 24. Re5+ Kc7) 21. Bh6 {[%emt 0:00:20]} (21. Bg5 $2 Nc6 22. Qxd5+ Kg7 $17) (21. Qh4 $142 Kg8 22. Rxe7 (22. Qxe7 $2 Rae8 $19)) 21... Nf5 $18 {[%emt 0:02:22]} 22. Qxd5+ $40 {[%emt 0:00:08][%mdl 128] Black is in trouble.} Kf6 {[%emt 0:00:04]} 23. Bxf8 {[%emt 0:03:06]} (23. Bf4 $2 Qxf4 24. Qxd7 Rf7 $19) 23... Rxf8 {[%emt 0:00:15]} 24. g4 {[%emt 0:00:43]} Kg5 {[%emt 0:05:52]} (24... Qd6 $2 25. Qxd6+ Nxd6 26. Rd1 Bxg4 27. Rxd6+ Kg7 28. Re4 $18) (24... Qc6 {is a better defense.} 25. Qxc6+ (25. Qe5+ Kf7 $16) 25... Bxc6) 25. gxf5 {[%emt 0:01:10]} Rxf5 {[%emt 0:00:05]} 26. Qd2+ {[%emt 0:00:43]} Kh5 {[%emt 0:00:16]} (26... Qf4 {was worth a try.} 27. h4+ {[%mdl 64] Deflection} (27. Qxd7 Qg4+ 28. Kf1 Rxf2+ {[%mdl 64] Discovered Attack} 29. Kxf2 Qxd7 $15) 27... Kxh4 28. Qxf4+ (28. Qxd7 $2 Qg4+ 29. Kf1 Rxf2+ {[%mdl 64] Discovered Attack} 30. Kxf2 Qxd7 $19) 28... Rxf4) 27. Re3 {[%emt 0:01:06] Threatens to win with Rh3+.} Rf4 {[%emt 0:00:36]} (27... Bc6 $142 28. Rh3+ Kg4) 28. Rae1 {[%emt 0:01:36] And now Re7 would win. White is clearly winning.} Bf5 {[%emt 0:00:08]} 29. Re7 {[%emt 0:02:13][%mdl 64] Skewer} Rg4+ {[%emt 0:01:36]} 30. Kf1 {[%emt 0:00:01]} Bd3+ {[%emt 0:00:06] [#]} 31. Qxd3 $3 {[%emt 0:00:04][%mdl 512]} Qxe7 {[%emt 0:00:04]} 32. Qd5+ {[%emt 0:00:06]} ({Less strong is} 32. Rxe7 cxd3 33. Rxh7+ Kg5 34. Rxb7 Re4 35. Rb5+ (35. Rxa7 $2 {loses.} d2 $19) 35... Kf6 $18) 32... Qg5 {[%emt 0:01:10] [#]} 33. Re5 $1 {[%emt 0:00:06] A cool game by Chyzy.   Weighted Error Value: White=0.41/Black=0.54} (33. Qxb7 {gets mated.} Rg1+ 34. Ke2 Qe5+ {[%mdl 64] Skewer, Double Attack} 35. Kf3 Qf5+ 36. Ke3 Qd3+ 37. Kf4 g5+ 38. Ke5 Rxe1+) 1-0

[Event "Polish Youth B18 Championship 2023"]
[Site "Jastrzebia Gora"]
[Date "2023.03.15"]
[Round "5.3"]
[White "Kacprzak, Karol"]
[Black "Luczak, Filip"]
[Result "0-1"]
[ECO "C02"]
[WhiteElo "2221"]
[BlackElo "2345"]
[Annotator "TA"]
[PlyCount "30"]
[EventDate "2023.03.11"]
[EventType "swiss"]
[EventCountry "POL"]
[SourceTitle "playchess.com"]
[Source "ChessBase"]
[SourceQuality "1"]
[TimeControl "40/5400+30:1800+30"]

{[%evp 15,30,0,20,-35,2,0,0,0,0,-108,-119,-240,-239,-258,-250,-232,-245]} 1. e4 {[%emt 0:00:04][%cal Be2e4,Be4e5][%mdl 32]} e6 {[%emt 0:00:08]} 2. d4 {[%emt 0:00:15]} d5 {[%emt 0:00:20]} 3. e5 {[%emt 0:00:21]} c5 {[%emt 0:00:03]} 4. c3 {[%emt 0:00:09]} Nc6 {[%emt 0:00:03]} 5. Nf3 {[%emt 0:00:10]} Bd7 {[%emt 0:00:03]} 6. Be2 {[%emt 0:02:21]} f6 {[%emt 0:00:08]} 7. exf6 {[%emt 0:05:48]} Nxf6 {[%emt 0:03:24]} 8. O-O {[%emt 0:07:33]} Qb6 {[%emt 0:09:16]} 9. Qb3 {[%emt 0:15:06] [#] C02: French: Advance Variation.} (9. a3 $11) 9... Bd6 $146 {[%emt 0:09:55]} ({Predecessor:} 9... Qc7 10. Bg5 Bd6 11. Bh4 O-O 12. Bg3 Bxg3 13. hxg3 Ne4 14. Na3 Rxf3 15. Bxf3 Nd2 16. Qd1 Nxf1 17. Kxf1 cxd4 18. cxd4 {0-1 Mokshanov,A (2393)-Ponkratov,P (2582) RUS-ch Higher League 64th 2011 (1)}) 10. Qxb6 {[%emt 0:11:17]} axb6 {[%emt 0:00:05]} 11. Re1 {[%emt 0:01:53] The position is equal.} O-O {[%emt 0:04:19]} 12. Bd3 {[%emt 0:08:34]} (12. Na3 $11 {keeps the balance.}) 12... cxd4 $17 {[%emt 0:03:17][%mdl 64] Deflection} 13. cxd4 {[%emt 0:04:55]} (13. Nxd4 $17 {is a better defense.} Ng4 {[%mdl 64] Discovered Attack} 14. Nf3) 13... Nb4 $1 $19 {[%emt 0:00:18][%csl LRa2,LRd3]} 14. Rd1 {[%emt 0:00:37] [#]} Ba4 $1 {[%emt 0:01:30]} ({Not} 14... Rxa2 15. Rxa2 Nxa2 16. Bd2 $15) 15. Rd2 {[%emt 0:01:54]} Bf4 {[%emt 0:00:58][%mdl 64] Skewer.   Weighted Error Value: White=0.48/Black=0.08 (flawless)} 0-1

[Event "Polish Youth B18 Championship 2023"]
[Site "Jastrzebia Gora"]
[Date "2023.03.15"]
[Round "5.4"]
[White "Zdybel, Przemyslaw"]
[Black "Ochedzan, Tymon"]
[Result "0-1"]
[ECO "B10"]
[WhiteElo "2268"]
[BlackElo "2240"]
[Annotator "TA"]
[PlyCount "70"]
[EventDate "2023.03.11"]
[EventType "swiss"]
[EventCountry "POL"]
[SourceTitle "playchess.com"]
[Source "ChessBase"]
[SourceQuality "1"]
[TimeControl "40/5400+30:1800+30"]

{[%evp 12,70,11,7,16,14,25,0,24,-15,2,-7,0,0,0,0,16,-8,19,13,25,18,34,-83,-75,-114,-114,-105,-97,-97,-101,-132,-134,-144,-114,-114,-118,-177,-123,-196,-200,-298,-297,-278,-272,-275,-284,-358,-352,-360,-315,-289,-295,-385,-379,-388,-377,-415,-406,-391,-397]} 1. e4 {[%emt 0:00:29]} c6 {[%emt 0:00:03]} 2. Nc3 {[%emt 0:01:22]} d5 {[%emt 0:00:05]} 3. Nf3 {[%emt 0:00:14]} dxe4 {[%emt 0:00:06]} 4. Nxe4 {[%emt 0:00:11]} Nf6 {[%emt 0:00:46]} 5. Ng3 {[%emt 0:02:09]} g6 {[%emt 0:01:22]} 6. d4 {[%emt 0:05:53]} Bg7 {[%emt 0:00:31]} 7. Be2 {[%emt 0:04:50]} O-O {[%emt 0:03:54] B15: Caro-Kann: 3 Nc3: 3...g6 and 3...dxe4 4 Nxe4 Nf6 5 Nxf6+ exf6.} 8. O-O {[%emt 0:03:15]} c5 {[%emt 0:07:11] [#]} 9. c4 $146 {[%emt 0:07:30]} ({Predecessor:} 9. dxc5 Qc7 10. c3 Nbd7 11. Nd4 Nxc5 12. Nb5 Qb8 13. Bf3 Bd7 14. Qe2 e5 15. Be3 {½-½ Bokros,A (2471)-Omorjan,D (2259) Vojvodina-chT 2nd League 2020 (1.1)}) 9... Qc7 {[%emt 0:08:57] The position is equal.} 10. dxc5 {[%emt 0:05:34]} Na6 {[%emt 0:04:32]} 11. Qc2 {[%emt 0:11:47]} Nxc5 {[%emt 0:02:48]} 12. b4 {[%emt 0:04:19]} Ne6 {[%emt 0:05:30]} 13. Bb2 {[%emt 0:04:46]} a5 {[%emt 0:02:05]} 14. a3 {[%emt 0:05:02]} (14. Be5 $5 {[%cal Re5c7]} Qb6 15. b5 $11) 14... axb4 {[%emt 0:05:15]} 15. axb4 {[%emt 0:00:02]} Bd7 {[%emt 0:00:07]} 16. Be5 {[%emt 0:04:17]} Qb6 {[%emt 0:03:30]} 17. Qb2 {[%emt 0:00:02]} (17. Rab1 $14 {keeps the upper hand.}) 17... Rxa1 $17 {[%emt 0:03:00] White is on the road to losing.} 18. Rxa1 {[%emt 0:00:05]} Ng4 {[%emt 0:00:23][%cal Bf6g4,Bg4e3,Be3d1][%mdl 32]} 19. Bxg7 {[%emt 0:03:56]} Qxf2+ {[%emt 0:02:12]} (19... Nxg7 20. c5 Qf6 21. Qxf6 Nxf6 22. Ne5 $16) 20. Kh1 {[%emt 0:00:04]} Nxg7 {[%emt 0:00:13]} 21. Qd4 {[%emt 0:00:53] [#] Prevents Ne3.} Ne3 $1 {[%emt 0:09:49][%csl Ge3][%cal Rf2g2]} 22. Rg1 {[%emt 0:00:38]} Bc6 {[%emt 0:08:21] ...Ne6 is the strong threat. Black is more active.} 23. b5 {[%emt 0:01:43]} Ne6 $40 {[%emt 0:01:08][%mdl 128] Black has strong attack.} 24. Qc3 {[%emt 0:05:18] [#]} (24. Qa7 $17 Be4 25. Nxe4 Qxe2 26. Qxb7) 24... Be4 {[%emt 0:03:21]} (24... Bxf3 $1 $19 {[%mdl 512]} 25. Bxf3 Nf4) 25. Nxe4 {[%emt 0:12:30]} (25. Qe1 $17 Qxe1 26. Rxe1 Bxf3 27. Bxf3 Nxc4 28. Bxb7) 25... Qxe2 $19 {[%emt 0:00:11]} 26. Ng3 {[%emt 0:02:05] [#]} (26. Qd2 $142 Qxd2 27. Nexd2) 26... Nd1 $1 {[%emt 0:02:11][%cal Rd1f2][%mdl 64] Double Attack} 27. Re1 {[%emt 0:01:21]} Qxg2+ {[%emt 0:00:47]} 28. Kxg2 {[%emt 0:00:05]} Nxc3 {[%emt 0:00:04]} 29. Ra1 {[%emt 0:01:16]} Nc5 {[%emt 0:01:05]} 30. Ra3 {[%emt 0:01:08]} N3e4 {[%emt 0:01:26]} 31. Nxe4 {[%emt 0:00:23]} Nxe4 {[%emt 0:00:04]} 32. b6 {[%emt 0:00:38]} Rc8 {[%emt 0:01:01] Black is winning.} 33. Ra7 {[%emt 0:02:04]} Nc5 {[%emt 0:02:17]} (33... Rxc4 $2 {too greedy.} 34. Rxb7 Rc2+ 35. Kg1 $19) 34. Nd4 {[%emt 0:00:34]} Kg7 {[%emt 0:01:21]} 35. Nb5 {[%emt 0:00:33]} Rc6 {[%emt 0:00:40] Artfully played by Ochedzan.   Weighted Error Value: White=0.30/Black=0.12 (very precise)} 0-1

[Event "Polish Youth B18 Championship 2023"]
[Site "Jastrzebia Gora"]
[Date "2023.03.15"]
[Round "5.5"]
[White "Backiel, Hubert"]
[Black "Turski, Bartlomiej"]
[Result "1/2-1/2"]
[ECO "B81"]
[WhiteElo "2127"]
[BlackElo "2352"]
[Annotator "TA"]
[PlyCount "60"]
[EventDate "2023.03.11"]
[EventType "swiss"]
[EventCountry "POL"]
[SourceTitle "playchess.com"]
[Source "ChessBase"]
[SourceQuality "1"]
[TimeControl "40/5400+30:1800+30"]

{[%evp 16,60,22,29,29,30,35,30,31,28,20,34,34,35,24,29,17,31,32,30,37,4,6,0,0,0,0,0,0,0,8,8,14,0,13,0,0,0,0,0,0,0,10,10,32,27,103]} 1. e4 {[%emt 0:03:37]} c5 {[%emt 0:00:03]} 2. Nf3 {[%emt 0:00:06]} e6 {[%emt 0:00:05]} 3. d4 cxd4 {[%emt 0:00:07]} 4. Nxd4 {[%emt 0:00:37]} Nf6 {[%emt 0:00:08]} 5. Nc3 {[%emt 0:00:04]} d6 {[%emt 0:00:06]} 6. g4 {[%emt 0:05:05]} h6 {[%emt 0:00:15]} 7. Rg1 {[%emt 0:01:08]} Nc6 {[%emt 0:00:19]} 8. h4 {[%emt 0:01:13]} d5 $1 {[%emt 0:00:13][%mdl 4] outshines the older 8...h5.} 9. exd5 {[%emt 0:01:15]} Nxd5 {[%emt 0:00:12] B81: Sicilian Scheveningen: Keres Attack.} 10. Nxd5 {[%emt 0:00:12]} exd5 {[%emt 0:00:07]} 11. Be3 {[%emt 0:00:28][%cal Bc1e3,Be3d4,Bd4e5][%mdl 32]} Qxh4 {[%emt 0:04:12]} 12. Qf3 {[%emt 0:03:39]} Nxd4 {[%emt 0:12:27]} 13. Bxd4 {[%emt 0:00:16] [#] Bb5+ is the strong threat.} Qe7+ {[%emt 0:05:51]} 14. Be2 {[%emt 0:05:43] Active counter play!} Qe4 {[%emt 0:08:59]} 15. O-O-O {[%emt 0:00:13] Threatens to win with Bb5+.} Qxf3 $1 {[%emt 0:02:41]} 16. Bxf3 {[%emt 0:00:04]} Be6 {[%emt 0:00:15]} 17. Rge1 {[%emt 0:04:34]} Kd7 {[%emt 0:20:45]} 18. Be5 {[%emt 0:07:33] [#]} f6 $146 {[%emt 0:09:18]} ({Predecessor:} 18... Rd8 19. Bxd5 Bxd5 20. Rxd5+ Kc8 21. Rxd8+ Kxd8 22. Bd4 a6 23. Kd2 f6 24. c3 Kd7 25. a4 h5 26. gxh5 Rxh5 27. b4 Rh3 {½-½ Vallejo Pons,F (2687)-Yu,Y (2736) Belt and Road Hunan op-A 2019 (8)}) 19. Bg3 {[%emt 0:00:10]} Bc5 {[%emt 0:01:36]} 20. Bxd5 {[%emt 0:18:59]} Bxd5 {[%emt 0:00:23][%mdl 64] [#] Remove Defender} 21. Rxd5+ {[%emt 0:00:02]} Kc6 {[%emt 0:00:09]} 22. Red1 {[%emt 0:00:12]} Rhe8 {[%emt 0:03:44]} 23. c3 {[%emt 0:09:36]} a5 {[%emt 0:02:53]} 24. f3 {[%emt 0:10:48]} Re6 {[%emt 0:02:49]} 25. Rd7 {[%emt 0:00:58]} Re7 $1 {[%emt 0:00:43]} 26. Rxe7 {[%emt 0:01:20]} Bxe7 {[%emt 0:00:08]} 27. Kc2 {[%emt 0:00:28]} Bc5 {[%emt 0:02:50]} 28. Re1 {[%emt 0:00:02]} Rf8 {[%emt 0:01:50]} 29. a4 {[%emt 0:06:01]} b6 {[%emt 0:09:12]} 30. Re4 {[%emt 0:02:00]} Kd7 {[%emt 0:06:15] Weighted Error Value: White=0.04 (flawless) /Black=0.03 (flawless)} (30... Bd6 $11 31. Re6 Rd8) 1/2-1/2